bitfinex/quotes_SOLUSD_20251119
["timestamp","ask_amount","ask_price","bid_price","bid_amount"]
[1763557682762,5.06417671,138.57,138.55,25.92138631]
[1763557684448,1.72,138.57,138.55,25.92138631]
[1763557684659,5.06417671,138.57,138.55,25.92138631]
[1763557685342,5.06417671,138.57,138.55,7.21735889]
[1763557685570,5.06417671,138.57,138.55,7.87735889]
[1763557686072,5.06417671,138.57,138.55,7.21735889]
[1763557686273,5.76417671,138.57,138.55,7.21735889]
[1763557686454,5.06417671,138.57,138.55,7.21735889]
[1763557686656,5.06417671,138.57,138.54,0.66]
[1763557688948,5.06417671,138.57,138.55,25.26163839]
[1763557689454,5.06417671,138.57,138.55,25.92163839]
[1763557689658,1.72,138.57,138.56,0.66]
[1763557690079,1.72,138.57,138.55,25.26163839]
[1763557690080,5.06417671,138.57,138.55,25.26163839]
[1763557690248,5.06417671,138.57,138.55,25.92163839]
[1763557690448,5.06417671,138.57,138.56,0.66]
[1763557690671,5.06417671,138.57,138.55,25.26163839]
[1763557690885,5.06417671,138.57,138.55,25.92163839]
[1763557691047,5.06417671,138.57,138.55,25.26163839]
[1763557691242,3.34417671,138.56,138.55,7.21761097]
[1763557693167,3.34417671,138.56,138.54,7.21787678]
[1763557693372,3.34417671,138.56,138.54,7.87787678]
[1763557694370,5.06417671,138.57,138.55,0.66]
[1763557695170,14.8530044,138.57,138.56,7.21709006]
[1763557695549,14.8530044,138.57,138.52,3.34417671]
[1763557695550,15.5530044,138.57,138.52,3.34417671]
[1763557695871,3.34417671,138.56,138.53,0.66]
[1763557696778,14.8530044,138.57,138.53,0.66]
[1763557697366,3.34417671,138.56,138.54,25.2634618]
[1763557697570,3.34417671,138.56,138.54,7.21813194]
[1763557697873,3.34417671,138.56,138.54,7.87813194]
[1763557698761,3.34417671,138.56,138.54,0.66]
[1763557698959,3.34417671,138.56,138.53,7.21848553]
[1763557699168,3.34417671,138.56,138.54,0.66]
[1763557699462,3.34417671,138.56,138.55,7.21761097]
[1763557699685,14.8530044,138.57,138.55,7.21761097]
[1763557702077,15.5430044,138.57,138.55,7.21761097]
[1763557702281,3.34417671,138.56,138.55,7.21761097]
[1763557702870,3.34417671,138.56,138.54,7.8879115]
[1763557703360,14.8530044,138.57,138.54,7.8879115]
[1763557703560,15.5430044,138.57,138.54,7.8879115]
[1763557705482,11.50882769,138.57,138.55,0.68]
[1763557707598,11.50882769,138.57,138.56,7.21709006]
[1763557707904,14.8530044,138.57,138.56,7.21709006]
[1763557709491,14.8530044,138.57,138.56,7.89709006]
[1763557709492,1.72,138.57,138.56,7.89709006]
[1763557712418,4.84453669,138.59,138.56,25.93981523]
[1763557712588,1.72,138.59,138.57,0.68]
[1763557713784,1.72,138.59,138.58,7.21604849]
[1763557714205,3.34417671,138.63,138.58,65.36058887]
[1763557714405,13.1330044,138.65,138.6,3.34417671]
[1763557714594,16.35863793,138.65,138.6,3.34417671]
[1763557714907,35.16959793,138.65,138.61,0.68]
[1763557715208,4.84981024,138.64,138.61,0.68]
[1763557715409,29.62978769,138.65,138.61,0.68]
[1763557715709,11.50882769,138.65,138.61,0.68]
[1763557715908,14.8530044,138.65,138.62,7.21396623]
[1763557716102,4.03417671,138.64,138.62,7.21396623]
[1763557716297,1.72,138.63,138.62,7.21396623]
[1763557716497,9.78882769,138.62,138.56,7.89709006]
[1763557716806,9.78882769,138.62,138.55,7.21742287]
[1763557716807,3.34417671,138.58,138.55,7.21742287]
[1763557717015,1.72,138.57,138.55,25.26145029]
[1763557717312,1.72,138.57,138.55,25.94145029]
[1763557717609,1.72,138.57,138.56,0.68]
[1763557718106,1.72,138.57,138.56,7.89709006]
[1763557719914,5.75417671,138.57,138.55,7.21761097]
[1763557720291,3.34417671,138.56,138.55,7.21761097]
[1763557720607,5.06417671,138.57,138.55,7.21761097]
[1763557722416,1.72,138.57,138.55,7.21761097]
[1763557722597,5.06417671,138.57,138.55,7.21761097]
[1763557722993,4.03417671,138.56,138.54,7.2180971]
[1763557723195,3.34417671,138.55,138.54,7.2180971]
[1763557723694,9.78882769,138.56,138.54,7.2180971]
[1763557724021,13.8230044,138.56,138.54,7.2180971]
[1763557724698,13.1330044,138.56,138.54,7.2180971]
[1763557725011,9.78882769,138.56,138.54,7.8980971]
[1763557725219,13.1330044,138.56,138.54,7.8980971]
[1763557725713,13.1330044,138.56,138.54,0.68]
[1763557726816,13.1330044,138.56,138.55,7.21761097]
[1763557728114,9.78882769,138.56,138.53,18.0461152]
[1763557728296,13.1330044,138.56,138.54,0.68]
[1763557728807,9.78882769,138.56,138.54,0.68]
[1763557729606,1.72,138.57,138.54,0.68]
[1763557730292,1.72,138.57,138.55,7.21761097]
[1763557731109,1.72,138.57,138.55,7.91761097]
[1763557733308,1.72,138.57,138.56,0.7]
[1763557733908,9.78882769,138.59,138.56,0.7]
[1763557734932,9.78882769,138.59,138.57,7.21656924]
[1763557735319,9.78882769,138.59,138.57,7.91656924]
[1763557735512,0.66,138.58,138.57,7.21656924]
[1763557735713,9.78882769,138.57,138.55,7.21713251]
[1763557735927,11.50882769,138.57,138.55,7.21713251]
[1763557737219,11.50882769,138.57,138.56,0.7]
[1763557738339,11.50882769,138.57,138.56,7.91709006]
[1763557740219,1.72,138.57,138.56,7.91709006]
[1763557742918,12.16882769,138.57,138.56,7.21709006]
[1763557743622,12.16882769,138.57,138.54,25.26297383]
[1763557744022,11.50882769,138.57,138.54,25.96297383]
[1763557744619,12.16882769,138.57,138.54,25.96297383]
[1763557744842,11.50882769,138.57,138.54,25.96297383]
[1763557745342,12.16882769,138.57,138.54,25.96297383]
[1763557745838,11.50882769,138.57,138.54,25.96297383]
[1763557746439,11.50882769,138.57,138.55,0.7]
[1763557746939,11.50882769,138.57,138.54,25.96297383]
[1763557748221,12.16882769,138.57,138.54,25.96297383]
[1763557749250,11.50882769,138.57,138.55,0.7]
[1763557750127,11.50882769,138.57,138.54,18.04484189]
[1763557750344,11.50882769,138.57,138.54,18.74484189]
[1763557750544,11.50882769,138.57,138.54,18.04484189]
[1763557750740,11.50882769,138.57,138.55,0.7]
[1763557752324,4.83743432,138.61,138.56,25.25981523]
[1763557752525,9.78882769,138.61,138.57,2.13994848]
[1763557752722,1.72,138.6,138.57,2.83994848]
[1763557752929,1.72,138.6,138.58,2.83994848]
[1763557753135,1.72,138.6,138.59,2.13994848]
[1763557753350,12.58877617,138.64,138.59,2.83994848]
[1763557753351,1.72,138.62,138.59,2.83994848]
[1763557753552,1.72,138.62,138.6,0.7]
[1763557754433,1.72,138.62,138.61,7.21448668]
[1763557755550,1.72,138.62,138.61,7.91448668]
[1763557755752,11.92877617,138.65,138.61,25.9507034]
[1763557755952,0.2,138.69,138.61,25.9507034]
[1763557755953,1.72,138.64,138.62,2.83994848]
[1763557756139,10.44882769,138.67,138.63,2.83994848]
[1763557756325,1.72,138.66,138.63,2.83994848]
[1763557756639,1.72,138.66,138.64,2.83994848]
[1763557756843,2.99994848,138.69,138.64,2.83994848]
[1763557757057,2.99994848,138.69,138.65,0.7]
[1763557757058,12.16882769,138.68,138.65,0.7]
[1763557757431,12.16882769,138.68,138.66,7.21188518]
[1763557758136,11.50882769,138.68,138.66,7.21188518]
[1763557758660,12.16882769,138.68,138.66,7.21188518]
[1763557758838,1.72,138.68,138.66,7.91188518]
[1763557759047,2.38,138.68,138.66,7.21188518]
[1763557759436,2.38,138.68,138.66,7.91188518]
[1763557759437,1.72,138.68,138.66,7.91188518]
[1763557759743,2.41,138.68,138.66,7.21188518]
[1763557760738,2.41,138.68,138.65,25.24241047]
[1763557760939,2.41,138.68,138.65,25.93241047]
[1763557761968,1.72,138.68,138.66,0.69]
[1763557763070,1.72,138.68,138.67,7.21136511]
[1763557764048,0.2,138.69,138.67,10.07131359]
[1763557764252,0.2,138.69,138.68,2.85994848]
[1763557765243,1e-08,138.69,138.68,10.07079359]
[1763557765942,1e-08,138.71,138.68,28.09790636]
[1763557766148,1e-08,138.71,138.7,2.13994848]
[1763557766656,1e-08,138.71,138.7,2.85994848]
[1763557767171,1e-08,138.71,138.7,10.06975381]
[1763557768839,1e-08,138.71,138.7,11.78975381]
[1763557769978,1e-08,138.71,138.7,12.51073434]
[1763557770883,1e-08,138.71,138.7,10.79073434]
[1763557771052,1e-08,138.71,138.7,7.92980533]
[1763557771246,1e-08,138.71,138.7,10.06975381]
[1763557773884,1e-08,138.71,138.7,11.78975381]
[1763557774551,1e-08,138.71,138.7,9.64980533]
[1763557774750,1e-08,138.71,138.7,11.78975381]
[1763557775177,1e-08,138.71,138.7,9.64980533]
[1763557775348,1e-08,138.71,138.7,11.78975381]
[1763557777080,1e-08,138.71,138.7,10.06975381]
[1763557782664,1e-08,138.71,138.7,9.34975381]
[1763557783182,1e-08,138.71,138.7,7.20980533]
[1763557787068,0.67000001,138.71,138.7,7.20980533]
[1763557787781,1e-08,138.71,138.7,7.20980533]
[1763557790597,1e-08,138.71,138.7,9.34975381]
[1763557790802,1e-08,138.71,138.7,10.54503417]
[1763557795206,1e-08,138.71,138.7,11.9360147]
[1763557795786,1e-08,138.71,138.7,11.21503417]
[1763557795984,1e-08,138.71,138.7,7.87980533]
[1763557796211,1e-08,138.71,138.7,12.93503417]
[1763557796884,1e-08,138.71,138.7,11.21503417]
[1763557797802,1e-08,138.71,138.7,10.54503417]
[1763557798604,1e-08,138.71,138.7,11.21503417]
[1763557801089,1e-08,138.71,138.7,30.0569747]
[1763557801288,1e-08,138.71,138.7,39.84580239]
[1763557801689,1e-08,138.75,138.71,0.67]
[1763557801892,1e-08,138.75,138.74,3.33522884]
[1763557802799,1e-08,138.75,138.74,11.21295552]
[1763557803685,1e-08,138.75,138.74,10.54295552]
[1763557803885,1e-08,138.75,138.74,7.20772668]
[1763557805013,0.2,138.78,138.75,0.67]
[1763557805303,0.2,138.78,138.77,3.33522884]
[1763557806481,0.67,138.81,138.77,3.33522884]
[1763557806482,1.72,138.82,138.77,4.00522884]
[1763557806691,1.72,138.82,138.79,3.33522884]
[1763557806890,1.72,138.82,138.8,7.20461095]
[1763557807097,2.39,138.82,138.8,7.20461095]
[1763557807712,103.4,138.83,138.81,3.33522884]
[1763557807891,103.4,138.83,138.8,28.55136716]
[1763557808403,103.4,138.83,138.81,3.33522884]
[1763557808791,103.4,138.83,138.82,10.53880181]
[1763557809201,11.70882769,138.85,138.82,10.53880181]
[1763557809413,1.92,138.85,138.82,10.53880181]
[1763557809707,0.2,138.85,138.83,3.33522884]
[1763557810379,0.2,138.85,138.82,25.2125054]
[1763557810583,0.2,138.85,138.82,28.54773424]
[1763557811781,0.2,138.85,138.83,3.33522884]
[1763557812909,0.2,138.85,138.84,7.20253529]
[1763557813214,0.2,138.85,138.84,10.53776413]
[1763557814004,0.2,138.85,138.84,7.20253529]
[1763557816711,0.87,138.85,138.84,7.20253529]
[1763557817413,0.2,138.85,138.84,7.20253529]
[1763557819405,0.2,138.85,138.84,10.53776413]
[1763557820520,103.6,138.85,138.84,10.53776413]
[1763557821019,103.6,138.85,138.84,7.20253529]
[1763557821219,103.6,138.85,138.84,10.53776413]
[1763557821815,103.6,138.85,138.84,7.20253529]
[1763557822022,104.26,138.85,138.84,7.20253529]
[1763557822914,103.6,138.85,138.84,7.20253529]
[1763557823410,104.26,138.85,138.84,7.20253529]
[1763557824023,103.6,138.85,138.84,7.20253529]
[1763557825301,104.27,138.85,138.84,7.20253529]
[1763557825500,103.6,138.85,138.84,7.20253529]
[1763557828110,105.32,138.85,138.84,7.20253529]
[1763557828507,105.99,138.85,138.84,7.20253529]
[1763557829521,105.32,138.85,138.84,7.20253529]
[1763557830327,105.32,138.85,138.83,7.20305409]
[1763557831025,105.99,138.85,138.83,7.20305409]
[1763557832428,103.4,138.84,138.83,7.20305409]
[1763557832630,104.07,138.84,138.83,7.20305409]
[1763557833131,103.4,138.84,138.83,7.20305409]
[1763557838436,103.4,138.84,138.81,7.20409192]
[1763557838437,107.40522884,138.84,138.81,7.20409192]
[1763557838612,2.39,138.83,138.81,7.20409192]
[1763557839040,0.67,138.82,138.81,25.21432173]
[1763557839228,0.67,138.82,138.81,7.20409192]
[1763557840029,0.67,138.82,138.8,7.20461095]
[1763557840225,2.39,138.83,138.8,25.21613832]
[1763557840440,0.67,138.82,138.8,25.21613832]
[1763557843031,105.12,138.81,138.8,7.20461095]
[1763557843226,105.79,138.81,138.8,7.20461095]
[1763557844132,105.79,138.81,138.79,7.20513005]
[1763557845038,105.12,138.81,138.77,7.20616848]
[1763557845237,107.40522884,138.8,138.77,7.20616848]
[1763557845550,1.72,138.79,138.77,7.20616848]
[1763557845733,2.39,138.79,138.77,7.20616848]
[1763557845925,0.67,138.78,138.77,7.20616848]
[1763557846128,0.67,138.78,138.77,18.0154212]
[1763557846930,0.67,138.78,138.76,7.2066878]
[1763557847252,4.00522884,138.78,138.76,7.2066878]
[1763557847566,0.67,138.78,138.76,7.2066878]
[1763557847934,1.72,138.77,138.76,7.2066878]
[1763557848330,1.72,138.77,138.75,18.66724655]
[1763557850060,1.72,138.77,138.75,18.01724655]
[1763557850231,2.39,138.77,138.75,25.22445375]
[1763557850654,1.72,138.77,138.75,25.22445375]
[1763557851263,0.67,138.76,138.75,25.22445375]
[1763557851959,2.39,138.77,138.75,25.22445375]
[1763557852256,2.39,138.77,138.75,18.01724655]
[1763557852461,1.72,138.77,138.75,18.01724655]
[1763557852752,2.39,138.77,138.75,18.01724655]
[1763557852949,2.39,138.77,138.74,7.20772668]
[1763557852950,0.67,138.76,138.74,7.20772668]
[1763557853154,2.80333052,138.76,138.74,7.20772668]
[1763557853344,4.52333052,138.77,138.74,7.20772668]
[1763557853753,3.85333052,138.77,138.74,7.20772668]
[1763557854144,0.67,138.76,138.74,7.20772668]
[1763557854353,4.52333052,138.77,138.74,18.6693167]
[1763557854747,0.67,138.76,138.74,18.0193167]
[1763557855754,103.4,138.8,138.75,2.78333052]
[1763557855952,1.72,138.79,138.76,2.13333052]
[1763557856155,1.72,138.79,138.76,2.78333052]
[1763557856354,1.72,138.79,138.78,7.20564922]
[1763557856536,103.4,138.8,138.78,9.33897974]
[1763557856856,103.4,138.8,138.79,2.78333052]
[1763557858259,103.4,138.8,138.79,7.20513005]
[1763557858455,104.07,138.8,138.79,7.20513005]
[1763557858763,106.20333052,138.8,138.79,7.20513005]
[1763557859933,104.07,138.8,138.79,7.20513005]
[1763557860361,103.4,138.8,138.78,7.20564922]
[1763557860565,1.72,138.79,138.78,7.20564922]
[1763557861237,1.72,138.79,138.78,9.98897974]
[1763557861457,103.4,138.8,138.78,9.98897974]
[1763557861660,103.4,138.8,138.79,0.65]
[1763557862360,103.4,138.8,138.79,7.85513005]
[1763557862874,103.4,138.8,138.79,9.98846057]
[1763557863778,104.07,138.8,138.79,7.20513005]
[1763557863953,105.12,138.8,138.79,7.20513005]
[1763557864353,105.79,138.8,138.78,7.20564922]
[1763557864858,104.07,138.79,138.75,36.13819688]
[1763557865037,2.13333052,138.77,138.76,7.2066878]
[1763557865238,3.85333052,138.77,138.76,7.2066878]
[1763557865567,3.85333052,138.77,138.73,36.04008058]
[1763557865568,14.31215821,138.77,138.73,18.01985125]
[1763557865744,2.80333052,138.76,138.73,25.22809748]
[1763557865941,2.13333052,138.75,138.73,25.22809748]
[1763557866172,1.72,138.74,138.73,25.22809748]
[1763557866541,2.39,138.74,138.72,7.20876585]
[1763557866971,3.85333052,138.74,138.72,7.20876585]
[1763557867288,4.52333052,138.74,138.72,7.20876585]
[1763557868250,1.72,138.74,138.71,25.88198448]
[1763557868444,2.39,138.74,138.71,25.88198448]
[1763557868664,2.39,138.74,138.71,25.23198448]
[1763557869088,4.52333052,138.74,138.71,25.23198448]
[1763557869254,4.52333052,138.74,138.71,7.20928555]
[1763557869255,2.13333052,138.72,138.71,7.20928555]
[1763557869680,2.80333052,138.72,138.71,7.20928555]
[1763557870375,2.80333052,138.72,138.69,25.23555627]
[1763557870576,1.72,138.71,138.69,25.23555627]
[1763557870783,4.52333052,138.71,138.69,25.23555627]
[1763557870987,1.72,138.71,138.69,25.23555627]
[1763557871285,0.67,138.7,138.69,25.23555627]
[1763557871496,2.80333052,138.7,138.69,7.21032518]
[1763557871787,2.80333052,138.7,138.64,36.16372118]
[1763557871788,9.78882769,138.69,138.64,0.1]
[1763557871965,2.13333052,138.66,138.64,0.1]
[1763557872166,1.72,138.65,138.64,0.1]
[1763557873779,2.80333052,138.66,138.64,0.1]
[1763557874089,1.72,138.65,138.64,0.1]
[1763557874584,4.52333052,138.65,138.64,0.1]
[1763557874753,14.31215821,138.65,138.64,0.1]
[1763557877063,12.17882769,138.65,138.64,0.1]
[1763557877274,14.31215821,138.65,138.64,0.1]
[1763557879864,12.17882769,138.65,138.64,0.1]
[1763557880194,11.50882769,138.65,138.64,0.1]
[1763557880586,1.72,138.65,138.64,7.31292556]
[1763557880761,1.72,138.65,138.64,7.97292556]
[1763557881166,18.12096,138.68,138.64,7.97292556]
[1763557881365,3.85333052,138.67,138.64,26.00523946]
[1763557881775,4.55333052,138.67,138.64,26.00523946]
[1763557882091,2.83333052,138.66,138.64,25.34523946]
[1763557882659,2.83333052,138.66,138.64,18.1323139]
[1763557882971,2.83333052,138.65,138.64,0.1]
[1763557884392,2.13333052,138.65,138.64,0.1]
[1763557884771,11.92215821,138.66,138.64,0.1]
[1763557885178,9.78882769,138.66,138.64,0.8]
[1763557885376,1.72,138.65,138.64,0.8]
[1763557887074,1.72,138.65,138.64,8.01292556]
[1763557891103,1.72,138.65,138.64,13.57711818]
[1763557891605,103.4,138.67,138.64,31.60943208]
[1763557891789,1.72,138.66,138.65,0.7]
[1763557892187,103.4,138.69,138.65,0.7]
[1763557892387,1.72,138.67,138.65,0.7]
[1763557892809,1.72,138.67,138.66,7.21188518]
[1763557893008,1.72,138.67,138.66,12.7760778]
[1763557893305,1.72,138.67,138.66,13.4760778]
[1763557895003,1.72,138.67,138.66,12.7760778]
[1763557895217,1.72,138.67,138.66,13.4760778]
[1763557895404,1.72,138.67,138.66,12.7760778]
[1763557895981,1.72,138.67,138.66,13.4760778]
[1763557897213,1.72,138.67,138.66,7.21188518]
[1763557899423,103.4,138.68,138.66,13.4760778]
[1763557899604,105.12,138.68,138.67,6.26419262]
[1763557899918,105.12,138.68,138.67,0.7]
[1763557900607,105.12,138.68,138.66,13.4760778]
[1763557901187,105.12,138.68,138.66,12.7760778]
[1763557901585,105.12,138.68,138.66,13.4760778]
[1763557901784,105.12,138.68,138.67,5.56419262]
[1763557901989,105.12,138.68,138.66,7.21188518]
[1763557902217,105.12,138.68,138.66,13.4760778]
[1763557903522,1.72,138.67,138.66,13.4760778]
[1763557903727,105.12,138.67,138.66,13.4760778]
[1763557905895,105.12,138.67,138.66,7.21188518]
[1763557906197,105.81,138.67,138.66,7.21188518]
[1763557906521,105.12,138.67,138.66,7.21188518]
[1763557906909,105.12,138.67,138.66,10.04772821]
[1763557909714,105.12,138.67,138.66,7.21188518]
[1763557909909,105.12,138.67,138.66,9.34772821]
[1763557910110,105.12,138.67,138.66,7.21188518]
[1763557911937,105.8,138.67,138.66,7.21188518]
[1763557912142,105.12,138.67,138.66,7.21188518]
[1763557913129,105.12,138.67,138.65,25.24287136]
[1763557914143,105.12,138.67,138.65,25.96287136]
[1763557914337,105.12,138.67,138.65,29.30081752]
[1763557917731,105.12,138.67,138.66,4.05794616]
[1763557918218,57.32906049,138.67,138.66,4.05794616]
[1763557918417,16.65828801,138.67,138.66,4.05794616]
[1763557919839,16.65828801,138.67,138.66,11.26983134]
[1763557921139,16.65828801,138.67,138.66,7.21188518]
[1763557921439,120.05828801,138.67,138.66,11.26983134]
[1763557921663,120.73828801,138.67,138.66,7.21188518]
[1763557921831,103.4,138.66,138.65,3.33794616]
[1763557922162,105.12,138.66,138.65,3.33794616]
[1763557922523,105.12,138.66,138.64,7.31267192]
[1763557922851,105.8,138.66,138.64,7.31267192]
[1763557924040,10.46882769,138.65,138.64,0.1]
[1763557924730,103.4,138.66,138.64,4.15794616]
[1763557924931,103.4,138.66,138.65,3.33794616]
[1763557925258,105.12,138.66,138.65,11.27035149]
[1763557925448,105.12,138.66,138.65,10.55035149]
[1763557926038,105.12,138.66,138.65,7.21240533]
[1763557927127,105.12,138.66,138.65,10.55035149]
[1763557927647,103.4,138.66,138.65,11.27035149]
[1763557927950,16.65828801,138.67,138.65,11.27035149]
[1763557928129,16.65828801,138.67,138.66,4.05794616]
[1763557929438,16.65828801,138.67,138.66,11.26983134]
[1763557934031,170.53794616,138.73,138.66,11.26983134]
[1763557934032,0.68,138.73,138.66,47.32925727]
[1763557934231,0.68,138.75,138.71,3.33794616]
[1763557934436,0.68,138.75,138.72,3.33794616]
[1763557934733,1.72,138.74,138.72,3.33794616]
[1763557935058,1.72,138.74,138.67,2.44]
[1763557935059,1.72,138.74,138.73,4.05794616]
[1763557935367,1.72,138.74,138.73,3.33794616]
[1763557936045,9.78882769,138.79,138.74,25.22704338]
[1763557936242,2.4,138.78,138.75,4.05794616]
[1763557936556,2.4,138.78,138.75,3.33794616]
[1763557937326,1.72,138.78,138.74,25.94704338]
[1763557937549,0.68,138.77,138.75,3.33794616]
[1763557938066,1.72,138.78,138.76,7.2066878]
[1763557938267,2.4,138.78,138.76,7.2066878]
[1763557939339,0.68,138.8,138.76,25.94340731]
[1763557939566,1.72,138.79,138.76,25.94340731]
[1763557939739,2.42,138.79,138.76,25.94340731]
[1763557940139,2.42,138.79,138.76,29.28135347]
[1763557940440,0.7,138.78,138.76,25.22340731]
[1763557941247,4.03794616,138.78,138.76,25.22340731]
[1763557941651,0.7,138.77,138.76,25.22340731]
[1763557942252,0.7,138.77,138.74,25.22704338]
[1763557942571,1.72,138.76,138.74,25.22704338]
[1763557943646,2.42,138.76,138.74,25.22704338]
[1763557943848,0.7,138.75,138.74,25.22704338]
[1763557944161,1.72,138.76,138.74,25.22704338]
[1763557944162,2.42,138.76,138.74,25.22704338]
[1763557944752,2.42,138.76,138.74,18.0193167]
[1763557945258,1.72,138.76,138.74,18.0193167]
[1763557945648,2.43,138.76,138.74,18.0193167]
[1763557953572,0.71,138.75,138.74,18.0193167]
[1763557953745,2.43,138.76,138.74,18.0193167]
[1763557955058,18.12096,138.78,138.74,18.7393167]
[1763557955059,18.83096,138.78,138.74,18.7393167]
[1763557955281,2.43,138.77,138.74,18.7393167]
[1763557956252,0.71,138.76,138.74,25.22704338]
[1763557960680,0.71,138.76,138.72,3.33794616]
[1763557960681,13.12677385,138.75,138.72,7.20870115]
[1763557960875,3.33794616,138.73,138.72,7.20870115]
[1763557961266,4.04794616,138.73,138.72,7.20870115]
[1763557962371,4.04794616,138.73,138.69,18.02508772]
[1763557962676,3.33794616,138.71,138.69,18.02508772]
[1763557962868,1.72,138.7,138.69,18.02508772]
[1763557964078,1.72,138.7,138.67,61.29649847]
[1763557964271,1.72,138.7,138.68,0.72]
[1763557966470,1.72,138.7,138.69,7.21032518]
[1763557967975,1.72,138.7,138.68,0.72]
[1763557968965,1.72,138.7,138.69,7.21032518]
[1763557971870,5.71794616,138.7,138.69,7.21032518]
[1763557972674,5.05794616,138.7,138.69,7.21032518]
[1763557972962,5.05794616,138.7,138.68,7.21084511]
[1763557972963,3.8558818,138.7,138.68,7.21084511]
[1763557975586,4.5158818,138.7,138.68,7.21084511]
[1763557975785,2.7958818,138.69,138.68,7.21084511]
[1763557977087,1.72,138.7,138.67,7.21136511]
[1763557977276,1.72,138.69,138.68,0.69]
[1763557977472,1.72,138.69,138.67,25.92977788]
[1763557977811,1.72,138.69,138.67,7.90136511]
[1763557977997,2.38,138.69,138.67,7.21136511]
[1763557978994,1.72,138.69,138.67,7.90136511]
[1763557983295,1.72,138.69,138.67,7.21136511]
[1763557983498,10.44882769,138.68,138.64,36.94255667]
[1763557983700,9.78882769,138.68,138.65,28.06909]
[1763557983901,9.78882769,138.68,138.66,0.69]
[1763557984608,10.44882769,138.68,138.65,28.06909]
[1763557984902,9.78882769,138.68,138.65,28.06909]
[1763557985205,9.78882769,138.68,138.66,0.69]
[1763557987201,9.78882769,138.68,138.67,7.21136511]
[1763557987380,54.14802981,138.69,138.67,9.34724691]
[1763557987585,54.14802981,138.69,138.68,0.69]
[1763557987804,54.14802981,138.69,138.68,2.8258818]
[1763557988404,54.14802981,138.69,138.68,0.69]
[1763557989194,52.42802981,138.69,138.68,10.03672691]
[1763557989483,17.99364826,138.74,138.68,64.11806523]
[1763557989689,17.99364826,138.74,138.72,2.1358818]
[1763557989890,1.72,138.74,138.73,2.1358818]
[1763557990089,1.72,138.74,138.73,2.8258818]
[1763557991514,1.72,138.74,138.73,7.89824623]
[1763557992829,1.72,138.74,138.73,10.03412803]
[1763557994010,9.78882769,138.77,138.73,10.03412803]
[1763557994011,9.78882769,138.77,138.73,28.05474361]
[1763557994212,1.72,138.76,138.74,2.8258818]
[1763557995093,1.72,138.76,138.75,2.1358818]
[1763557995094,11.50882769,138.76,138.75,2.1358818]
[1763557995393,1.72,138.76,138.75,2.8258818]
[1763557995609,1.72,138.76,138.75,2.1358818]
[1763557995886,1.72,138.76,138.75,9.343089]
[1763557996108,2.38,138.76,138.75,7.2072072]
[1763557996304,1.72,138.76,138.75,7.2072072]
[1763557996634,1.72,138.76,138.75,9.343089]
[1763557996824,1.72,138.76,138.75,7.2072072]
[1763557998032,1.72,138.76,138.75,9.343089]
[1763557998537,16.27364826,138.79,138.75,28.05110701]
[1763557998711,1.72,138.78,138.77,2.1358818]
[1763557999211,1.72,138.78,138.77,2.8258818]
[1763558000212,1.72,138.78,138.77,10.03205028]
[1763558001236,1.92,138.81,138.77,64.07831388]
[1763558001439,1.92,138.81,138.8,2.1358818]
[1763558001738,1.92,138.81,138.79,2.1358818]
[1763558001950,2.64,138.81,138.78,2.1358818]
[1763558002108,2.64,138.81,138.79,7.20513005]
[1763558002420,1.92,138.81,138.8,2.1358818]
[1763558002615,1.92,138.81,138.8,2.8358818]
[1763558003854,0.2,138.83,138.8,2.8358818]
[1763558003855,1e-08,138.83,138.81,0.7]
[1763558004152,1e-08,138.83,138.82,27.46041477]
[1763558004526,1e-08,138.83,138.82,28.16041477]
[1763558004926,1e-08,138.83,138.82,10.03945477]
[1763558009543,1e-08,138.83,138.82,7.90357297]
[1763558009855,1e-08,138.83,138.82,10.03945477]
[1763558010442,1e-08,138.83,138.82,8.66865477]
[1763558012060,1e-08,138.83,138.8,44.67478554]
[1763558012061,0.71000001,138.83,138.81,7.20409192]